[Event "Weekendtournooi Groningen & PK NOSBO"]
[Site "Groningen, Netherlands"]
[Date "2023.05.19"]
[Round "3.1"]
[White "Hummel, Paul"]
[Black "Maatman, Nick"]
[Result "1/2-1/2"]
[TimeControl "90min + 30sec/move"]
[BlackTitle "IM"]
[WhiteElo "2152"]
[BlackElo "2348"]

1. d4 {[%clk 01:30:58]} Nf6 {[%clk 01:26:12]} {[%emt 00:04:42]} 2. c4 {[%clk
01:31:21]} {[%emt 00:00:09]} c5 {[%clk 01:26:33]} {[%emt 00:00:04]} 3. d5
{[%clk 01:31:46]} {[%emt 00:00:01]} b5 {[%clk 01:27:01]} {[%emt 00:00:14]} 4.
cxb5 {[%clk 01:31:09]} {[%emt 00:00:56]} a6 {[%clk 01:27:29]} {[%emt 00:00:05]}
5. bxa6 {[%clk 01:30:54]} {[%emt 00:01:22]} g6 {[%clk 01:27:55]} 6. Nc3 {[%clk
01:30:56]} {[%emt 00:00:28]} Bg7 {[%clk 01:28:20]} 7. e4 {[%clk 01:30:33]}
{[%emt 00:00:47]} O-O {[%clk 01:28:32]} 8. Nf3 {[%clk 01:27:28]} {[%emt
00:03:25]} Qa5 {[%clk 01:28:47]} {[%emt 00:00:27]} 9. Nd2 {[%clk 01:25:20]}
{[%emt 00:02:27]} Bxa6 {[%clk 01:24:35]} {[%emt 00:04:42]} 10. Bxa6 {[%clk
01:25:16]} {[%emt 00:00:50]} Qxa6 {[%clk 01:25:00]} 11. Qe2 {[%clk 01:21:21]}
{[%emt 00:04:13]} d6 {[%clk 01:23:26]} {[%emt 00:02:15]} 12. a4 {[%clk
01:17:04]} {[%emt 00:05:15]} Nbd7 {[%clk 01:10:46]} {[%emt 00:12:34]} 13. Ra3
{[%clk 01:08:22]} {[%emt 00:09:10]} Rfb8 {[%clk 01:03:34]} {[%emt 00:07:43]} 14.
Nb5 {[%clk 01:06:21]} {[%emt 00:02:29]} Ne8 {[%clk 01:03:30]} {[%emt 00:00:58]}
15. Nc4 {[%clk 01:00:39]} {[%emt 00:05:57]} Qb7 {[%clk 00:57:58]} {[%emt
00:05:55]} 16. O-O {[%clk 00:56:42]} {[%emt 00:04:29]} Nc7 {[%clk 00:57:02]}
{[%emt 00:01:38]} 17. Nxc7 {[%clk 00:48:45]} {[%emt 00:08:38]} Qxc7 {[%clk
00:57:30]} {[%emt 00:00:04]} 18. b3 {[%clk 00:44:27]} {[%emt 00:04:20]} Ne5
{[%clk 00:53:53]} {[%emt 00:04:29]} 19. Bd2 {[%clk 00:41:42]} {[%emt 00:03:02]}
Qb7 {[%clk 00:42:48]} {[%emt 00:11:28]} 20. Nxe5 {[%clk 00:34:12]} {[%emt
00:07:58]} Bxe5 {[%clk 00:43:16]} {[%emt 00:00:15]} 21. Rb1 {[%clk 00:34:22]}
{[%emt 00:00:09]} Qa6 {[%clk 00:40:54]} {[%emt 00:02:50]} 22. Qxa6 {[%clk
00:34:30]} {[%emt 00:00:34]} Rxa6 {[%clk 00:40:02]} {[%emt 00:01:13]} 23. b4
{[%clk 00:29:32]} {[%emt 00:05:28]} cxb4 {[%clk 00:40:17]} {[%emt 00:00:12]} 24.
Rxb4 {[%clk 00:27:56]} {[%emt 00:02:07]} Rxb4 {[%clk 00:40:07]} {[%emt
00:00:50]} 25. Bxb4 {[%clk 00:28:25]} Rb6 {[%clk 00:40:35]} 26. Be1 {[%clk
00:25:43]} {[%emt 00:03:04]} Bd4 {[%clk 00:19:22]} {[%emt 00:22:06]} 27. Kf1
{[%clk 00:16:49]} {[%emt 00:09:04]} Rb2 {[%clk 00:19:22]} {[%emt 00:00:27]} 28.
a5 {[%clk 00:16:54]} {[%emt 00:00:24]} f6 {[%clk 00:15:17]} {[%emt 00:04:46]}
29. Ra4 {[%clk 00:12:58]} {[%emt 00:04:16]} Bc5 {[%clk 00:14:22]} {[%emt
00:01:48]} 30. f4 {[%clk 00:08:35]} {[%emt 00:04:32]} Kf7 {[%clk 00:14:24]}
{[%emt 00:00:34]} 31. Rc4 {[%clk 00:06:24]} {[%emt 00:02:34]} Ra2 {[%clk
00:12:06]} {[%emt 00:02:47]} 32. e5 {[%clk 00:06:26]} {[%emt 00:00:28]} g5
{[%clk 00:11:10]} {[%emt 00:01:27]} 33. e6+ {[%clk 00:04:38]} {[%emt 00:02:19]}
Kg6 {[%clk 00:11:38]} 34. fxg5 {[%clk 00:05:05]} {[%emt 00:00:23]} fxg5 {[%clk
00:11:12]} {[%emt 00:00:37]} 35. h4 {[%clk 00:04:02]} {[%emt 00:01:33]} Kf5
{[%clk 00:09:08]} {[%emt 00:02:34]} 36. hxg5 {[%clk 00:03:20]} {[%emt
00:01:33]} Ke5 {[%clk 00:09:29]} 37. Rh4 {[%clk 00:02:20]} {[%emt 00:01:19]}
Kxd5 {[%clk 00:09:57]} {[%emt 00:00:09]} 38. Rxh7 {[%clk 00:02:47]} {[%emt
00:00:05]} Kxe6 {[%clk 00:10:22]} 39. g6 {[%clk 00:02:29]} {[%emt 00:00:44]} d5
{[%clk 00:06:24]} {[%emt 00:04:28]} 40. Rh5 {[%clk 00:02:21]} {[%emt 00:00:37]}
Bd4 {[%clk 00:06:44]} {[%emt 00:00:13]} 41. Rg5 {[%clk 00:02:03]} {[%emt
00:00:45]} Bg7 {[%clk 00:06:59]} {[%emt 00:00:20]} 42. Bb4 {[%clk 00:01:28]}
{[%emt 00:01:00]} 1/2-1/2

[Event "Weekendtournooi Groningen & PK NOSBO"]
[Site "Groningen, Netherlands"]
[Date "2023.05.19"]
[Round "3.4"]
[White "Keuning, Selwin"]
[Black "Huizinga, Egbert"]
[Result "1-0"]
[TimeControl "90min + 30sec/move"]
[WhiteElo "2148"]
[BlackElo "1772"]

1. e4 {[%clk 01:30:57]} {[%emt 00:00:04]} e5 {[%clk 01:30:55]} {[%emt
00:00:06]} 2. Nf3 {[%clk 01:31:24]} {[%emt 00:00:05]} Nc6 {[%clk 01:31:20]}
{[%emt 00:00:05]} 3. d4 {[%clk 01:31:28]} {[%emt 00:00:22]} exd4 {[%clk
01:31:38]} {[%emt 00:00:38]} 4. Nxd4 {[%clk 01:31:52]} Nf6 {[%clk 01:31:47]}
{[%emt 00:00:23]} 5. Nxc6 {[%clk 01:32:20]} bxc6 {[%clk 01:32:08]} 6. e5 {[%clk
01:32:43]} Qe7 {[%clk 01:32:00]} {[%emt 00:00:33]} 7. Qe2 {[%clk 01:33:06]}
{[%emt 00:00:30]} Nd5 {[%clk 01:32:11]} 8. g3 {[%clk 01:33:33]} g5 {[%clk
01:26:09]} {[%emt 00:06:30]} 9. c4 {[%clk 01:28:54]} {[%emt 00:05:10]} Ba6
{[%clk 01:26:22]} {[%emt 00:00:59]} 10. h4 {[%clk 01:25:29]} {[%emt 00:03:21]}
Bg7 {[%clk 01:25:54]} {[%emt 00:00:50]} 11. hxg5 {[%clk 01:18:39]} {[%emt
00:07:31]} Nb6 {[%clk 01:23:40]} {[%emt 00:02:32]} 12. Rh4 {[%clk 01:07:38]}
{[%emt 00:11:32]} O-O-O {[%clk 01:02:14]} {[%emt 00:21:55]} 13. Re4 {[%clk
00:59:16]} {[%emt 00:08:53]} Rhe8 {[%clk 00:56:16]} {[%emt 00:06:31]} 14. Nd2
{[%clk 00:51:24]} {[%emt 00:08:20]} Na4 {[%clk 00:41:56]} {[%emt 00:14:50]} 15.
f4 {[%clk 00:30:46]} {[%emt 00:21:09]} Nc5 {[%clk 00:36:08]} {[%emt 00:06:17]}
16. Re3 {[%clk 00:28:14]} {[%emt 00:03:06]} d5 {[%clk 00:35:53]} {[%emt
00:00:42]} 17. Qg4+ {[%clk 00:23:19]} {[%emt 00:05:56]} Kb8 {[%clk 00:35:06]}
{[%emt 00:00:54]} 18. cxd5 {[%clk 00:22:19]} {[%emt 00:01:44]} Rxd5 {[%clk
00:33:12]} {[%emt 00:02:05]} 19. Bxa6 {[%clk 00:13:41]} {[%emt 00:09:10]} Nxa6
{[%clk 00:33:30]} {[%emt 00:00:14]} 20. Qe2 {[%clk 00:13:26]} {[%emt 00:01:15]}
Nb4 {[%clk 00:29:15]} {[%emt 00:04:07]} 21. Ne4 {[%clk 00:08:28]} {[%emt
00:05:38]} Red8 {[%clk 00:26:52]} {[%emt 00:03:08]} 22. a3 {[%clk 00:01:34]}
{[%emt 00:07:01]} Nd3+ {[%clk 00:26:00]} {[%emt 00:01:21]} 23. Kf1 {[%clk
00:01:46]} {[%emt 00:00:40]} Qe6 {[%clk 00:23:02]} {[%emt 00:03:07]} 24. Bd2
{[%clk 00:00:52]} {[%emt 00:01:24]} Qh3+ {[%clk 00:21:25]} {[%emt 00:02:13]} 25.
Qg2 {[%clk 00:00:39]} {[%emt 00:00:36]} Qf5 {[%clk 00:19:32]} {[%emt 00:02:43]}
26. Kg1 {[%clk 00:00:33]} {[%emt 00:00:19]} Bf8 {[%clk 00:16:51]} {[%emt
00:03:39]} 27. Be1 {[%clk 00:00:34]} Nc5 {[%clk 00:14:30]} {[%emt 00:02:49]} 28.
b4 {[%emt 00:00:29]} Nxe4 {[%clk 00:12:09]} {[%emt 00:02:53]} 29. Qxe4 {[%clk
00:01:03]} {[%emt 00:00:04]} Qxe4 {[%clk 00:12:02]} {[%emt 00:00:32]} 30. Rxe4
{[%clk 00:01:32]} {[%emt 00:00:16]} Rd3 {[%clk 00:12:16]} {[%emt 00:00:08]} 31.
Rc4 {[%clk 00:00:44]} {[%emt 00:01:11]} Kb7 {[%clk 00:12:37]} {[%emt 00:00:31]}
32. Bf2 {[%clk 00:00:35]} {[%emt 00:00:18]} Rb3 {[%clk 00:12:27]} {[%emt
00:00:39]} 33. Rc2 {[%clk 00:00:43]} {[%emt 00:00:47]} Rdd3 {[%clk 00:12:41]}
{[%emt 00:00:12]} 34. Kg2 {[%clk 00:01:05]} Rxa3 {[%clk 00:08:45]} {[%emt
00:04:13]} 35. Rac1 {[%clk 00:01:31]} {[%emt 00:00:06]} Bxb4 {[%clk 00:07:51]}
{[%emt 00:01:55]} 36. Rxc6 {[%clk 00:01:56]} Ba5 {[%clk 00:07:45]} {[%emt
00:00:11]} 37. f5 {[%clk 00:00:47]} {[%emt 00:01:39]} Ra2 {[%clk 00:07:59]}
{[%emt 00:00:17]} 38. R6c2 {[%clk 00:01:06]} {[%emt 00:00:14]} Rd2 {[%clk
00:07:45]} {[%emt 00:00:38]} 39. Rxa2 {[%clk 00:01:27]} {[%emt 00:00:13]} Rxa2
{[%clk 00:08:10]} {[%emt 00:00:06]} 40. Kf3 {[%clk 00:01:44]} {[%emt 00:00:30]}
Bd2 {[%clk 00:08:20]} {[%emt 00:00:10]} 41. Rh1 {[%clk 00:00:39]} {[%emt
00:01:26]} Ra3+ {[%clk 00:06:40]} {[%emt 00:02:07]} 42. Ke2 {[%clk 00:00:45]}
{[%emt 00:00:23]} Bxg5 {[%clk 00:06:53]} {[%emt 00:00:28]} 43. Rxh7 {[%clk
00:01:11]} {[%emt 00:00:10]} Ra5 {[%clk 00:06:43]} {[%emt 00:00:24]} 44. Bd4
{[%clk 00:01:29]} {[%emt 00:00:12]} Ra4 {[%clk 00:06:06]} {[%emt 00:01:07]} 45.
Kd3 {[%clk 00:01:42]} {[%emt 00:00:17]} Ra3+ {[%clk 00:03:45]} {[%emt
00:03:01]} 46. Ke4 {[%clk 00:02:03]} {[%emt 00:00:04]} Rxg3 {[%clk 00:03:15]}
{[%emt 00:00:54]} 47. Rxf7 {[%clk 00:02:15]} {[%emt 00:00:35]} Rg4+ {[%clk
00:03:08]} {[%emt 00:00:26]} 48. Kd5 {[%clk 00:02:33]} {[%emt 00:00:38]} Bh4
{[%clk 00:02:20]} {[%emt 00:01:07]} 49. e6 {[%clk 00:02:34]} {[%emt 00:00:13]}
Rg8 {[%clk 00:01:15]} {[%emt 00:01:31]} 50. e7 {[%clk 00:02:07]} {[%emt
00:01:06]} Re8 {[%clk 00:00:42]} {[%emt 00:00:53]} 51. f6 {[%clk 00:02:18]}
{[%emt 00:00:36]} 1-0

[Event "Weekendtournooi Groningen & PK NOSBO"]
[Site "Groningen, Netherlands"]
[Date "2023.05.19"]
[Round "3.5"]
[White "Van Huisstede, Alex"]
[Black "Jacobs, Florian"]
[Result "0-1"]
[TimeControl "90min + 30sec/move"]
[WhiteElo "1684"]
[BlackElo "2227"]

1. d4 {[%clk 01:30:54]} {[%emt 00:00:07]} Nf6 {[%clk 01:30:53]} {[%emt
00:00:11]} 2. c4 {[%clk 01:31:16]} {[%emt 00:00:06]} e6 {[%clk 01:31:16]}
{[%emt 00:00:06]} 3. g3 {[%clk 01:31:31]} {[%emt 00:00:14]} d5 {[%clk
01:31:40]} {[%emt 00:00:07]} 4. Bg2 {[%clk 01:31:35]} {[%emt 00:00:26]} Bb4+
{[%clk 01:32:02]} {[%emt 00:00:07]} 5. Bd2 {[%clk 01:31:36]} {[%emt 00:00:32]}
Be7 {[%clk 01:32:26]} {[%emt 00:00:10]} 6. Nf3 {[%clk 01:30:56]} {[%emt
00:01:04]} O-O {[%clk 01:32:49]} {[%emt 00:00:08]} 7. Qc2 {[%clk 01:30:27]}
{[%emt 00:00:58]} Nbd7 {[%clk 01:32:42]} {[%emt 00:00:35]} 8. O-O {[%clk
01:29:59]} {[%emt 00:00:59]} c6 {[%clk 01:33:03]} {[%emt 00:00:10]} 9. b3
{[%clk 01:28:43]} {[%emt 00:01:46]} b6 {[%clk 01:31:53]} {[%emt 00:01:43]} 10.
Nc3 {[%clk 01:26:31]} {[%emt 00:02:38]} Bb7 {[%clk 01:32:06]} {[%emt 00:00:17]}
11. e4 {[%clk 01:25:14]} {[%emt 00:01:48]} dxe4 {[%clk 01:31:50]} {[%emt
00:00:45]} 12. Nxe4 {[%clk 01:25:22]} {[%emt 00:00:23]} Nxe4 {[%clk 01:32:14]}
{[%emt 00:00:06]} 13. Qxe4 {[%clk 01:25:42]} {[%emt 00:00:13]} Nf6 {[%clk
01:32:38]} {[%emt 00:00:09]} 14. Qe2 {[%clk 01:22:42]} {[%emt 00:03:27]} c5
{[%clk 01:32:50]} {[%emt 00:00:15]} 15. dxc5 {[%clk 01:18:58]} {[%emt
00:04:12]} Bxc5 {[%clk 01:32:18]} {[%emt 00:01:06]} 16. Bc3 {[%clk 01:16:37]}
{[%emt 00:02:48]} Ne4 {[%clk 01:24:15]} {[%emt 00:08:36]} 17. Bb2 {[%clk
01:13:34]} {[%emt 00:03:34]} Qe7 {[%clk 01:22:12]} {[%emt 00:02:29]} 18. Rad1
{[%clk 01:08:13]} {[%emt 00:05:50]} Rad8 {[%clk 01:21:45]} {[%emt 00:01:01]} 19.
Rxd8 {[%clk 01:07:25]} {[%emt 00:01:15]} Rxd8 {[%clk 01:22:09]} {[%emt
00:00:14]} 20. Bc1 {[%clk 01:03:34]} {[%emt 00:04:13]} e5 {[%clk 00:56:23]}
{[%emt 00:26:16]} 21. Nh4 {[%clk 00:54:19]} {[%emt 00:09:45]} Nc3 {[%clk
00:49:29]} {[%emt 00:07:30]} 22. Qg4 {[%clk 00:51:07]} {[%emt 00:03:37]} Bc8
{[%clk 00:36:49]} {[%emt 00:13:09]} 23. Nf5 {[%clk 00:46:16]} {[%emt 00:05:22]}
Bxf5 {[%clk 00:28:45]} {[%emt 00:08:35]} 24. Qxf5 {[%clk 00:46:16]} {[%emt
00:00:28]} Ne2+ {[%clk 00:28:44]} {[%emt 00:00:36]} 25. Kh1 {[%clk 00:46:22]}
{[%emt 00:00:19]} Nxc1 {[%clk 00:28:02]} {[%emt 00:01:14]} 26. Rxc1 {[%clk
00:46:03]} {[%emt 00:00:52]} g6 {[%clk 00:28:28]} 27. Qc2 {[%clk 00:42:11]}
{[%emt 00:06:46]} Rd4 {[%clk 00:22:05]} {[%emt 00:04:34]} 28. Bd5 {[%clk
00:37:27]} {[%emt 00:06:28]} Kg7 {[%clk 00:20:57]} {[%emt 00:08:51]} 29. Kg2
{[%clk 00:36:36]} Qf6 {[%clk 00:20:57]} 30. Re1 {[%clk 00:35:28]} Qg5 {[%clk
00:17:02]} 31. Re2 {[%clk 00:33:22]} {[%emt 00:01:59]} h5 {[%clk 00:15:40]}
{[%emt 00:01:47]} 32. Qc3 {[%clk 00:28:16]} {[%emt 00:05:37]} h4 {[%clk
00:13:43]} {[%emt 00:02:28]} 33. h3 {[%clk 00:25:40]} {[%emt 00:03:08]} Bd6
{[%clk 00:06:25]} {[%emt 00:07:45]} 34. Re4 {[%clk 00:22:44]} {[%emt 00:03:26]}
hxg3 {[%clk 00:05:04]} {[%emt 00:01:49]} 35. f4 {[%clk 00:18:03]} {[%emt
00:05:11]} Qf6 {[%clk 00:04:29]} {[%emt 00:01:06]} 36. Qe3 {[%clk 00:13:56]}
{[%emt 00:06:14]} Rxe4 {[%clk 00:03:27]} 37. Qxe4 {[%clk 00:13:40]} {[%emt
00:00:41]} exf4 {[%clk 00:03:52]} {[%emt 00:00:05]} 38. Qe2 {[%clk 00:12:49]}
{[%emt 00:01:21]} Bc5 {[%clk 00:04:06]} {[%emt 00:00:15]} 39. Qd2 {[%clk
00:11:07]} {[%emt 00:02:12]} Be3 {[%clk 00:04:10]} {[%emt 00:00:27]} 40. Qc2
{[%clk 00:10:43]} {[%emt 00:00:54]} Qa1 {[%clk 00:04:23]} {[%emt 00:00:16]} 41.
Qe2 {[%clk 00:09:27]} {[%emt 00:01:51]} a5 {[%clk 00:04:10]} {[%emt 00:00:38]}
42. h4 {[%clk 00:08:33]} {[%emt 00:01:25]} Qg1+ {[%clk 00:04:31]} {[%emt
00:00:08]} 43. Kh3 {[%clk 00:08:39]} {[%emt 00:00:24]} f5 {[%clk 00:04:05]}
{[%emt 00:00:56]} 44. Qc2 {[%clk 00:08:14]} {[%emt 00:00:54]} Qa1 {[%clk
00:03:23]} {[%emt 00:01:13]} 45. h5 {[%clk 00:08:12]} {[%emt 00:00:39]} Qf6
{[%clk 00:03:28]} {[%emt 00:00:18]} 46. hxg6 {[%clk 00:07:58]} {[%emt
00:00:44]} Kxg6 {[%clk 00:03:47]} {[%emt 00:00:11]} 47. Qe2 {[%clk 00:07:54]}
{[%emt 00:00:36]} Qh8+ {[%clk 00:03:55]} {[%emt 00:00:20]} 48. Kg2 {[%clk
00:08:08]} {[%emt 00:00:16]} Qh2+ {[%clk 00:04:20]} {[%emt 00:00:07]} 49. Kf1
{[%clk 00:08:01]} {[%emt 00:00:43]} Qg1# {[%emt 00:00:12]} 0-1

[Event "Weekendtournooi Groningen & PK NOSBO"]
[Site "Groningen, Netherlands"]
[Date "2023.05.19"]
[Round "3.6"]
[White "Labruyere, Roger"]
[Black "De Vries, Arjan"]
[Result "1-0"]
[TimeControl "90min + 30sec/move"]
[WhiteElo "2169"]
[BlackElo "1592"]

1. e4 {[%clk 01:30:58]} {[%emt 00:00:04]} e5 {[%clk 01:30:41]} {[%emt
00:00:34]} 2. Nf3 {[%clk 01:31:23]} Nf6 {[%clk 01:30:34]} {[%emt 00:00:25]} 3.
Nxe5 {[%clk 01:31:40]} {[%emt 00:00:38]} d6 {[%clk 01:31:00]} {[%emt 00:00:09]}
4. Nf3 {[%clk 01:32:06]} Nxe4 {[%clk 01:31:27]} 5. Nc3 {[%clk 01:32:32]} Nxc3
{[%clk 01:30:39]} {[%emt 00:01:21]} 6. dxc3 {[%clk 01:32:40]} {[%emt 00:00:13]}
Be6 {[%clk 01:30:34]} {[%emt 00:00:24]} 7. Be3 {[%clk 01:33:04]} {[%emt
00:00:35]} Qd7 {[%clk 01:30:21]} {[%emt 00:00:15]} 8. Qd2 {[%clk 01:33:16]}
{[%emt 00:00:42]} Nc6 {[%clk 01:30:08]} {[%emt 00:00:39]} 9. Bb5 {[%clk
01:33:30]} {[%emt 00:00:12]} a6 {[%clk 01:30:01]} {[%emt 00:00:23]} 10. Ba4
{[%clk 01:33:55]} {[%emt 00:00:05]} b5 {[%clk 01:29:40]} {[%emt 00:00:55]} 11.
Bb3 {[%clk 01:34:23]} Bxb3 {[%clk 01:29:54]} {[%emt 00:00:48]} 12. axb3 {[%clk
01:33:08]} {[%emt 00:01:39]} Be7 {[%clk 01:30:10]} 13. c4 {[%clk 01:33:27]}
{[%emt 00:00:11]} bxc4 {[%clk 01:30:19]} {[%emt 00:00:06]} 14. bxc4 {[%clk
01:33:51]} {[%emt 00:00:05]} O-O {[%clk 01:29:00]} {[%emt 00:01:48]} 15. O-O
{[%clk 01:33:50]} {[%emt 00:00:36]} Bf6 {[%clk 01:29:01]} {[%emt 00:00:24]} 16.
c3 {[%clk 01:34:02]} {[%emt 00:00:25]} Ne5 {[%clk 01:26:42]} {[%emt 00:02:42]}
17. Nxe5 {[%clk 01:34:27]} {[%emt 00:00:50]} Bxe5 {[%clk 01:27:09]} 18. Ra5
{[%clk 01:34:52]} Qc6 {[%clk 01:25:42]} {[%emt 00:01:20]} 19. Qe2 {[%clk
01:33:40]} {[%emt 00:01:42]} Rfb8 {[%clk 01:23:55]} {[%emt 00:02:17]} 20. Rfa1
{[%clk 01:33:56]} {[%emt 00:00:15]} Qe4 {[%clk 01:19:55]} {[%emt 00:04:30]} 21.
f3 {[%clk 01:30:42]} {[%emt 00:04:18]} Rxb2 {[%clk 01:13:15]} {[%emt 00:07:10]}
22. Qxb2 {[%clk 01:29:14]} {[%emt 00:01:40]} Qxe3+ {[%clk 01:13:40]} 23. Qf2
{[%clk 01:29:41]} Qxc3 {[%clk 01:14:03]} {[%emt 00:00:13]} 24. Qe2 {[%clk
01:15:56]} {[%emt 00:14:02]} Qd4+ {[%clk 01:12:38]} {[%emt 00:01:54]} 25. Kh1
{[%clk 01:13:31]} {[%emt 00:02:54]} Qb6 {[%clk 01:05:21]} {[%emt 00:07:46]} 26.
c5 {[%clk 01:03:50]} {[%emt 00:10:11]} Qb7 {[%clk 01:05:48]} {[%emt 00:00:07]}
27. Rd1 {[%clk 00:56:20]} {[%emt 00:08:04]} h6 {[%clk 01:05:07]} {[%emt
00:01:29]} 28. cxd6 {[%clk 00:55:30]} {[%emt 00:01:43]} Bxd6 {[%clk 01:05:27]}
29. Rda1 {[%clk 00:54:16]} {[%emt 00:01:36]} Qb4 {[%clk 01:03:49]} {[%emt
00:01:37]} 30. g3 {[%clk 00:51:51]} {[%emt 00:02:53]} Qc3 {[%clk 01:02:33]}
{[%emt 00:01:49]} 31. R1a2 {[%clk 00:48:24]} {[%emt 00:04:06]} Kh7 {[%clk
00:57:45]} {[%emt 00:05:06]} 32. Qe4+ {[%clk 00:47:57]} {[%emt 00:01:03]} f5
{[%clk 00:57:32]} {[%emt 00:00:38]} 33. Qxa8 {[%clk 00:48:18]} {[%emt
00:00:12]} c6 {[%clk 00:57:49]} {[%emt 00:00:10]} 34. Kg2 {[%clk 00:48:21]}
{[%emt 00:00:26]} f4 {[%clk 00:57:57]} {[%emt 00:00:22]} 35. Qxa6 {[%clk
00:48:28]} {[%emt 00:00:24]} fxg3 {[%clk 00:58:18]} {[%emt 00:00:34]} 36. hxg3
{[%clk 00:48:53]} {[%emt 00:00:09]} Qe1 {[%clk 00:58:35]} 37. Qd3+ {[%clk
00:49:15]} {[%emt 00:00:04]} 1-0

[Event "Weekendtournooi Groningen & PK NOSBO"]
[Site "Groningen, Netherlands"]
[Date "2023.05.19"]
[Round "3.7"]
[White "Jovanovic, Luka L"]
[Black "Aden, Tammo"]
[Result "0-1"]
[TimeControl "90min + 30sec/move"]
[WhiteElo "1384"]
[BlackElo "1998"]

1. d4 {[%clk 01:30:50]} {[%emt 00:00:12]} d5 {[%clk 01:30:53]} {[%emt
00:00:08]} 2. c4 {[%clk 01:31:17]} {[%emt 00:00:23]} e6 {[%clk 01:31:17]} 3.
Nf3 {[%clk 01:31:42]} Nf6 {[%clk 01:31:41]} 4. g3 {[%clk 01:32:06]} {[%emt
00:00:02]} Be7 {[%clk 01:32:07]} {[%emt 00:00:09]} 5. Bg2 {[%clk 01:32:31]} O-O
{[%clk 01:32:32]} {[%emt 00:00:05]} 6. O-O {[%clk 01:32:50]} {[%emt 00:00:08]}
dxc4 {[%clk 01:32:58]} {[%emt 00:00:36]} 7. Ne5 {[%clk 01:32:57]} {[%emt
00:00:10]} Nc6 {[%clk 01:33:22]} 8. Nxc6 {[%clk 01:28:11]} {[%emt 00:05:05]}
bxc6 {[%clk 01:33:50]} {[%emt 00:00:07]} 9. e3 {[%clk 01:27:34]} {[%emt
00:01:01]} Ba6 {[%clk 01:32:10]} {[%emt 00:02:13]} 10. Bxc6 {[%clk 01:27:04]}
{[%emt 00:00:57]} Rb8 {[%clk 01:32:24]} {[%emt 00:00:20]} 11. Qa4 {[%clk
01:26:00]} {[%emt 00:01:30]} Rb6 {[%clk 01:31:34]} {[%emt 00:01:21]} 12. Rd1
{[%clk 01:23:06]} {[%emt 00:03:25]} Nd5 {[%clk 01:18:08]} {[%emt 00:13:54]} 13.
e4 {[%clk 01:17:44]} {[%emt 00:05:55]} Nb4 {[%clk 01:18:27]} {[%emt 00:00:09]}
14. d5 {[%clk 01:16:33]} {[%emt 00:01:40]} Bc5 {[%clk 01:09:46]} {[%emt
00:09:09]} 15. dxe6 {[%clk 01:11:53]} {[%emt 00:05:10]} Qf6 {[%clk 01:08:55]}
{[%emt 00:01:24]} 16. exf7+ {[%clk 01:11:52]} {[%emt 00:00:28]} Kh8 {[%clk
01:07:57]} {[%emt 00:01:29]} 17. e5 {[%clk 01:11:06]} {[%emt 00:01:38]} Qxf2+
{[%clk 01:08:13]} {[%emt 00:00:09]} 18. Kh1 {[%clk 01:11:24]} {[%emt 00:00:05]}
Nxc6 {[%clk 01:08:09]} {[%emt 00:00:23]} 19. Nd2 {[%clk 01:10:49]} {[%emt
00:01:05]} Nxe5 {[%clk 01:08:07]} {[%emt 00:01:06]} 20. Qe8 {[%clk 01:09:19]}
{[%emt 00:01:48]} Bb7+ {[%clk 01:08:23]} {[%emt 00:00:09]} 0-1

[Event "Weekendtournooi Groningen & PK NOSBO"]
[Site "Groningen, Netherlands"]
[Date "2023.05.19"]
[Round "3.8"]
[White "Bruggink, Tycho"]
[Black "Blokzijl, Ruben"]
[Result "1-0"]
[TimeControl "90min + 30sec/move"]
[WhiteElo "1873"]
[BlackElo "1454"]

1. e4 {[%clk 01:30:59]} {[%emt 00:00:09]} c6 {[%clk 01:30:57]} {[%emt
00:00:04]} 2. Nc3 {[%clk 01:31:25]} d5 {[%clk 01:31:13]} {[%emt 00:00:13]} 3.
Nf3 {[%clk 01:31:53]} {[%emt 00:00:13]} dxe4 {[%clk 01:31:35]} {[%emt
00:00:03]} 4. Nxe4 {[%clk 01:32:18]} Bf5 {[%clk 01:31:43]} {[%emt 00:00:23]} 5.
Ng3 {[%clk 01:32:43]} {[%emt 00:00:07]} Bg6 {[%clk 01:31:57]} {[%emt 00:00:53]}
6. h4 {[%clk 01:33:09]} h6 {[%clk 01:32:04]} 7. Ne5 {[%clk 01:33:32]} Bh7
{[%clk 01:32:20]} {[%emt 00:00:14]} 8. Qh5 {[%clk 01:33:57]} g6 {[%clk
01:32:30]} {[%emt 00:00:19]} 9. Qf3 {[%clk 01:34:25]} {[%emt 00:00:03]} f6
{[%clk 01:27:36]} {[%emt 00:05:45]} 10. Bc4 {[%clk 01:33:43]} {[%emt 00:00:47]}
fxe5 {[%clk 01:22:04]} {[%emt 00:06:03]} 11. Qf7+ {[%clk 01:34:01]} {[%emt
00:00:31]} Kd7 {[%clk 01:22:25]} {[%emt 00:00:07]} 12. Ne4 {[%clk 01:31:33]}
{[%emt 00:02:44]} b6 {[%clk 01:14:34]} {[%emt 00:08:18]} 13. Qe6+ {[%clk
01:31:37]} {[%emt 00:00:37]} Ke8 {[%clk 01:13:47]} {[%emt 00:01:06]} 14. Qxe5
{[%clk 01:32:02]} {[%emt 00:00:41]} g5 {[%clk 01:12:25]} {[%emt 00:01:14]} 15.
Qxh8 {[%clk 01:31:29]} {[%emt 00:01:23]} Bxe4 {[%clk 01:12:37]} {[%emt
00:00:04]} 16. Qxg8 {[%clk 01:31:54]} {[%emt 00:00:03]} Bd5 {[%clk 01:11:31]}
{[%emt 00:01:33]} 17. Bxd5 {[%clk 01:32:03]} {[%emt 00:00:27]} Qxd5 {[%clk
01:11:43]} {[%emt 00:00:12]} 18. Qxd5 {[%clk 01:32:26]} {[%emt 00:00:38]} cxd5
{[%clk 01:12:09]} 19. hxg5 {[%clk 01:32:36]} {[%emt 00:00:03]} hxg5 {[%clk
01:12:22]} {[%emt 00:00:07]} 20. d3 {[%clk 01:33:04]} {[%emt 00:00:33]} Bg7
{[%clk 01:11:51]} {[%emt 00:00:31]} 21. Bxg5 {[%clk 01:32:53]} {[%emt
00:00:41]} Bxb2 {[%clk 01:12:14]} {[%emt 00:00:06]} 22. Rb1 {[%clk 01:33:20]}
{[%emt 00:00:43]} Bc3+ {[%clk 01:11:41]} {[%emt 00:00:22]} 23. Ke2 {[%clk
01:33:43]} {[%emt 00:00:16]} Nc6 {[%clk 01:12:06]} {[%emt 00:00:15]} 24. Be3
{[%clk 01:32:58]} {[%emt 00:00:57]} Kd7 {[%clk 01:11:23]} {[%emt 00:01:14]} 25.
f4 {[%clk 01:32:20]} {[%emt 00:01:10]} Rf8 {[%clk 01:10:16]} {[%emt 00:01:52]}
26. g4 {[%clk 01:32:27]} {[%emt 00:00:06]} e6 {[%clk 01:09:50]} {[%emt
00:01:06]} 27. Rh7+ {[%clk 01:32:38]} {[%emt 00:00:11]} Ne7 {[%clk 01:09:53]}
{[%emt 00:00:41]} 28. d4 {[%clk 01:32:34]} {[%emt 00:00:18]} Kd6 {[%clk
01:07:52]} {[%emt 00:02:50]} 29. Kd3 {[%clk 01:32:57]} Ba5 {[%clk 01:07:37]}
{[%emt 00:00:59]} 30. c3 {[%clk 01:33:18]} {[%emt 00:00:04]} Nc6 {[%clk
01:05:12]} {[%emt 00:02:34]} 31. Bc1 {[%clk 01:33:38]} {[%emt 00:00:43]} 1-0